Cogmind - Beta 16 @@@ ROGUE MODE // 2025.11.16 @ 18:42:26 Player: tthaar Result: Destroyed self with Grenade Launcher Performance ------------- Evolutions (0) 0 Regions Visited (2) 400 Robots Destroyed (22) 110 Value Destroyed (506) 506 Prototype IDs (2) 40 Alien Tech Used (0) 0 Bonus (0) 0 TOTAL SCORE: 1056 Bonus ------- None Cogmind --------- Core Integrity 0/250 Matter 238/300 Energy 160/160 System Corruption 2% Temperature Cool (0) Movement Walking (130) Location -10/Subcaves Parts ------- > --- POWER (1) -------- Light Nuclear Core > --- PROPULSION (2) --- Aluminum Leg Makeshift Leg > --- UTILITY (2) ------ Medium Storage Unit Signal Interpreter > --- WEAPON (2) ------- Grenade Launcher > --- INVENTORY (10) --- Ion Engine Ion Engine Aluminum Leg Small Storage Unit High-capacity Matter Pod (200) Sensor Array Autogun Mining Laser Peak State ------------ > --- POWER ------------ Light Nuclear Core > --- PROPULSION ------- Aluminum Leg Makeshift Leg > --- UTILITY ---------- Medium Storage Unit Signal Interpreter > --- WEAPON ----------- Autogun > --- INVENTORY -------- Ion Engine Ion Engine Aluminum Leg Small Storage Unit High-capacity Matter Pod Sensor Array Autogun Grenade Launcher Mining Laser [Rating: 13] Favorites ----------- Power Ion Engine Engine Ion Engine Power Core Light Nuclear Core Propulsion Aluminum Leg Leg Aluminum Leg Utility Medium Storage Unit Device Terrain Scanner Storage Medium Storage Unit Processor Signal Interpreter Weapon Light Cannon Energy Gun Small Laser Ballistic Gun Assault Rifle Ballistic Cannon Light Cannon Launcher Grenade Launcher Special Weapon Mining Laser Build | -11 -10 -10 ------- Run | Yrd Mat Sub Slots Evolved . | . . . Power . | . . . Propulsion . | . . . Utility . | . . . Weapon . | . . . Parts Attached 29 | 6 20 3 Power 6 | 1 4 1 Engine 5 | 1 4 . Core 1 | . . 1 Reactor . | . . . Propulsion 8 | 2 4 2 Treads . | . . . Leg 8 | 2 4 2 Wheel . | . . . Hover . | . . . Flight . | . . . Utility 7 | 1 6 . Device 1 | . 1 . Storage 4 | 1 3 . Processor 2 | . 2 . Hackware . | . . . Protection . | . . . Artifact . | . . . Weapon 8 | 2 6 . Energy Gun 1 | 1 . . Energy Cannon . | . . . Ballistic Gun 3 | 1 2 . Ballistic Cannon 1 | . 1 . Launcher 1 | . 1 . Special Weapon 2 | . 2 . Impact Weapon . | . . . Slashing Weapon . | . . . Piercing Weapon . | . . . Special Melee Weapon . | . . . Unidentified Prototypes . | . . . Parts Lost 4 | . 1 3 Power 1 | . 1 . Propulsion 1 | . . 1 Utility . | . . . Weapon 2 | . . 2 Highest Loss Streak 2 | . 1 2 To Critical Strikes . | . . . Average Backups 8 | 3 7 8 Power 1 | . . 1 Propulsion 2 | 1 2 1 Utility 2 | . 2 3 Weapon 2 | . 2 2 Tool/Special . | . . . Unused Backups 12 | . 7 5 Power 2 | . 1 1 Propulsion 6 | . 5 1 Utility 2 | . . 2 Weapon 2 | . 1 1 Tool/Special . | . . . Average Slot Usage (%) 95 | . 94 98 Engine 13 | . 14 11 Leg 24 | . 23 27 Storage 15 | . 16 14 Processor 10 | . 9 14 Energy Gun 2 | . 2 . Ballistic Gun 13 | . 13 14 Ballistic Cannon 10 | . 10 9 Peak Build Rating 13 | 6 9 13 Average Rating 7 | 4 7 10 On Entrance 5 | . 6 9 Avg Prop Armor Cover (%) . | . . . Naked Turns . | . . . Heaviest Build 21 | 11 21 21 Greatest Support 30 | 20 20 30 Greatest Overweight (x) 1 | 1 1 1 Average Overweight (x) . | . . . Largest Inventory Capacity 20 | 8 20 10 Average Capacity 9 | 7 8 10 Most Carried 10 | 7 10 10 Average Carried 8 | 4 8 8 Final Capacity 10 | 8 10 10 Final Carried 9 | 6 9 8 Class Distribution -------------------- 100% | Mutant Dominant Class ---------------- Mutant | -10/Materials Mutant | -10/Subcaves Resources | -11 -10 -10 ----------- Run | Yrd Mat Sub Matter Collected 1087 | 217 600 270 Remotely . | . . . Salvage Created 605 | . 534 71 Parts 37 | . 34 3 Haulers Intercepted . | . . . Recyclers Shooed 1 | . 1 . Parts Field Recycled . | . . . Retrieved Matter . | . . . Parts Self-Destructed 5 | . . 5 Prevented . | . . . Parts Restored . | . . . Kills | -11 -10 -10 ------- Run | Yrd Mat Sub Combat Hostiles Destroyed 15 | . 13 2 Guns 11 | . 9 2 Cannons 4 | . 4 . Classes Destroyed 9 | . 8 1 Worker 1 | . 1 . Tunneler 1 | . 1 . Recycler 1 | . 1 . Mechanic 1 | . 1 . Operator 1 | . 1 . Watcher 2 | . 2 . Swarmer 6 | . 6 . Grunt 8 | . 7 1 Subdweller 1 | . . 1 Best Kill Streak 4 | . 4 1 Combat Bots Only 3 | . 3 1 Max Kills in Single Turn 2 | . 2 1 Gunslinging . | . . . Exploded . | . . . Melee . | . . . Uniques/NPCs Destroyed . | . . . Combat | -11 -10 -10 -------- Run | Yrd Mat Sub Hostile Shots Fired 87 | . 53 34 Missed 24 | . 15 9 Hits 63 | . 38 25 Projectile 63 | . 38 25 Critical Strikes 2 | . . 2 Damage Taken 1226 | . 667 559 Core 257 | . 170 87 Absorbed by Shields . | . . . Regen/Repaired (Parts) 83 | . 83 . Core Remaining (%) 100 | 100 . . Volleys Fired 91 | . 62 29 Largest 2 | . 2 2 Hottest 100 | . 100 53 Shots Fired 164 | . 114 50 Gun 104 | . 79 25 Cannon 42 | . 25 17 Launcher 9 | . 1 8 Special 9 | . 9 . Kinetic 124 | . 82 42 Thermal 31 | . 31 . Explosive 9 | . 1 8 Electromagnetic . | . . . Robot Hit Streak 14 | . 8 14 Robot Miss Streak 9 | . 9 6 Penetration Max . | . . . Secondary Targets . | . . . Shots Hit Robots 82 | . 50 32 Core Hits 36 | . 31 5 Critical Kills . | . . . Critical Parts Destroyed . | . . . Critical Strikes . | . . . Melee Attacks . | . . . Impact . | . . . Slashing . | . . . Piercing . | . . . Sneak Attacks . | . . . Combat Hostiles . | . . . Follow-up Attacks . | . . . Damage Inflicted 962 | . 755 207 Guns 616 | . 548 68 Cannons 203 | . 170 33 Explosions 143 | . 37 106 Melee . | . . . Ramming . | . . . Kinetic 722 | . 621 101 Thermal 97 | . 97 . Explosive 143 | . 37 106 Electromagnetic . | . . . Impact . | . . . Slashing . | . . . Piercing . | . . . Highest Corruption 2 | . 2 2 Average Corruption 2 | . 2 2 Corruption Purged . | . . . Corruption Blocked . | . . . Effects 27 | . 19 8 Message Errors 6 | . 4 2 Matter Fused 7 | . 5 2 Heat Flow Errors 5 | . 5 . Energy Discharges 1 | . 1 . Data Loss (minor) 2 | . 1 1 Data Loss (major) 5 | . 3 2 Misfires 1 | . . 1 Overload Shots . | . . . Overflow Damage 7 | . . 7 Projectiles . | . . . Explosions 7 | . . 7 Melee . | . . . Knockbacks 1 | . 1 . Impact . | . . . Kinetic 1 | . 1 . Secondary . | . . . Self-Inflicted Damage 82 | . 7 75 Shots 5 | . 1 4 Rammed . | . . . Targets Rammed . | . . . Kicked . | . . . Crushed . | . . . Highest Temperature 258 | . 258 . Average Temperature 49 | . 49 . Received Heat Transfer 231 | . 150 81 Siege Activations . | . . . Martial Activations . | . . . Shielding Activations . | . . . Robots Disrupted . | . . . Combat Hostiles . | . . . Robots Corrupted . | . . . Combat Hostiles . | . . . Parts Fried . | . . . Impact Corruptions . | . . . Robots Melted . | . . . Combat Hostiles . | . . . Parts Melted . | . . . Heat Transferred 225 | . 225 . Parts Sabotaged . | . . . Parts Stolen . | . . . Parts Stripped . | . . . Power Chain Reactions . | . . . Alert | -11 -10 -10 ------- Run | Yrd Mat Sub Maximum Alert Level . | . . . Low Security (%) 100 | 100 100 . Level 1 . | . . . Level 2 . | . . . Level 3 . | . . . Level 4 . | . . . Level 5 . | . . . High Security . | . . . Max Security . | . . . Peak Influence 82 | . 82 . Initial . | . . . Average 19 | . 20 . Influence Increases 470 | . 425 45 Destroy 0b10 Robot/C 280 | . 260 20 Destroy 0b10 Robot/NC 35 | . 35 . Destroy Leader 74 | . 64 10 Successful Hack 27 | . 27 . Disable Machine 30 | . 30 . Destroy Structure 9 | . 9 . Lose Combat Pursuer 15 | . . 15 Influence Decreases 470 | . 425 45 Time Decay 460 | . 415 45 Lost Part 10 | . 10 . Squads Dispatched 2 | . 2 . Investigation 2 | . 2 . Extermination . | . . . Reinforcement . | . . . Assault . | . . . Garrison . | . . . Intercept . | . . . Searches Triggered . | . . . Construction Impeded . | . . . Haulers Reinforced . | . . . Active Scanning Responses . | . . . Cargo Convoy Interrupts . | . . . Stealth | -11 -10 -10 --------- Run | Yrd Mat Sub Distress Signals 1 | . 1 . Communications Jammed . | . . . Distress Signals . | . . . Times Spotted 24 | . 21 3 Peak Tracking Total 3 | . 3 2 Tactical Retreats 1 | . . 1 Traps | -11 -10 -10 ------- Run | Yrd Mat Sub Traps Triggered 2 | . 2 . Indirectly . | . . . Trap Hack Attempts . | . . . Triggered . | . . . Disarmed . | . . . Reprogrammed . | . . . Reused . | . . . Traps Extracted . | . . . Installed . | . . . Triggered . | . . . Machines | -11 -10 -10 ---------- Run | Yrd Mat Sub Machines Disabled 2 | . 2 . Max in Single Turn 1 | . 1 . Machines Repaired . | . . . Machines Dismantled . | . . . Machines Sabotaged . | . . . Overloaded Fab Kills . | . . . Hacking | -11 -10 -10 --------- Run | Yrd Mat Sub Machines Accessed 10 | . 10 . Terminals 7 | . 7 . Fabricators . | . . . Repair Stations 1 | . 1 . Recycling Units 2 | . 2 . Scanalyzers . | . . . Garrison Access . | . . . Total Hacks 27 | . 27 . Successful 18 | . 18 . Failed 9 | . 9 . Catastrophic 2 | . 2 . Database Lockouts . | . . . Manual 4 | . 4 . Terminals 17 | . 17 . Fabricators . | . . . Repair Stations 4 | . 4 . Recycling Units 6 | . 6 . Scanalyzers . | . . . Garrison Access . | . . . Terminal Hacks 9 | . 9 . Record 2 | . 2 . Robot Analysis 1 | . 1 . Prototype ID Bank 1 | . 1 . Alert Level 1 | . 1 . Locate Traps 2 | . 2 . Dispatch Records 1 | . 1 . Recall Investigation 1 | . 1 . Fabricator Hacks . | . . . Repair Station Hacks 4 | . 4 . Scan Component 2 | . 2 . Repair 2 | . 2 . Recycling Unit Hacks 5 | . 5 . Process 2 | . 2 . Report Inventory 2 | . 2 . Retrieve Matter 1 | . 1 . Scanalyzer . | . . . Garrison Access Hacks . | . . . Unauthorized Hacks . | . . . Terminals . | . . . Fabricators . | . . . Repair Stations . | . . . Recycling Units . | . . . Scanalyzers . | . . . Garrison Access . | . . . Data Cores Recovered 1 | . 1 . Used . | . . . Hacking Detections 9 | . 9 . Full Trace Events 2 | . 2 . Feedback Events . | . . . Feedback Blocked . | . . . Robot Schematics Acquired . | . . . Robots Built . | . . . Authchips . | . . . Time . | . . . Total Robot Build Rating . | . . . Part Schematics Acquired . | . . . Parts Built . | . . . Authchips . | . . . Time . | . . . Total Part Build Rating . | . . . Part Studies Acquired . | . . . Parts Repaired 2 | . 2 . Time 52 | . 52 . Parts Recycled . | . . . Recycled Matter 565 | . 565 . Retrieved Matter 314 | . 314 . Retrieved Components . | . . . Parts Scanalyzed . | . . . Part Schematics Acquired . | . . . Parts Damaged . | . . . Bothacking | -11 -10 -10 ------------ Run | Yrd Mat Sub Used RIF Installer . | . . . Robots Hacked . | . . . Non-combat . | . . . Combat . | . . . Robot Hacks Applied . | . . . Relay Couplers Released . | . . . Fabnet Peak Effective % . | . . . Robots Rewired . | . . . Allies Hacked . | . . . Hacks Repelled . | . . . Allies | -11 -10 -10 -------- Run | Yrd Mat Sub Total Allies . | . . . Largest Group . | . . . Highest-Rated Group . | . . . Highest-Rated Ally . | . . . Total Orders . | . . . Ally Attacks . | . . . Total Damage . | . . . Kills . | . . . Allies Corrupted . | . . . Allies Melted . | . . . Intel | -11 -10 -10 ------- Run | Yrd Mat Sub Active Infowar (turns) 787 | . 787 . Optics 596 | . 596 . Terrain 191 | . 191 . Robot Analysis Total 1 | . 1 . Derelict Logs Recovered . | . . . Drone Launches . | . . . Drone Recoveries . | . . . Exploration | -11 -10 -10 ------------- Run | Yrd Mat Sub Turns Passed 2753 | 72 2157 524 Spaces Moved 1585 | 47 1263 275 Core 4 | 4 . . Treads . | . . . Legs 1581 | 43 1263 275 Wheels . | . . . Hover . | . . . Flight . | . . . Fastest Speed 50 | 50 120 130 Average Speed 148 | 117 146 160 Slowest Speed 210 | 120 190 210 Overloaded Moves . | . . . Propulsion Burnouts . | . . . Robots Hopped . | . . . Potential Cave-ins . | . . . Cave-ins Triggered 1 | . 1 . Exploration Rate (%) 40 | 4 100 17 Regions Visited 2 Branch Regions 1 Pre-discovered Areas . | . . . Known Exits Taken 1 | . 1 . Unknown Exits Taken 1 | 1 . . Scrap Searched 3 | . . 3 Spaces Dug 5 | . 5 . Terrain Destroyed 55 | . 12 43 Melee . | . . . Projectile 6 | . 6 . AOE 49 | . 6 43 Terrain Rammed . | . . . Walls Destroyed . | . . . Machines Disabled . | . . . Actions | -11 -10 -10 --------- Run | Yrd Mat Sub Total 1821 | 64 1444 313 Wait 29 | . 29 . Move 1583 | 46 1262 275 Hop . | . . . Pick Up 52 | 12 38 2 Fast Attach 2 | . 2 . Attach 15 | 6 7 2 Detach . | . . . Swap 21 | . 17 4 Drop 28 | . 27 1 Fire 91 | . 62 29 Melee . | . . . Ram . | . . . Kick . | . . . Crush . | . . . Escape Stasis . | . . . Rewire . | . . . Trap . | . . . Miscellaneous . | . . . Route ------- -11/Scrapyard -10/Materials (discovered 6 exits: *Mat x3 / *Min x2 / *Sub) -10/Subcaves History --------- Turn | Location | Event 6 | -11/Scrapyard | Discovered new exit (range 15) 73 | -11/Scrapyard | Entered Materials 306 | -10/Materials | Build established: Mutant 441 | -10/Materials | Discovered new exit (range 8) 818 | -10/Materials | Discovered new exit (range 14) 876 | -10/Materials | Crushed by falling debris 876 | -10/Materials | Core integrity fell below 50% 1088 | -10/Materials | Repaired Signal Interpreter 1129 | -10/Materials | Repaired Lgt. Cannon 1283 | -10/Materials | Discovered new exit (range 5) 1296 | -10/Materials | Identified exit to Subcaves 1344 | -10/Materials | Discovered new exit (range 11) 1361 | -10/Materials | Identified exit to Materials 1770 | -10/Materials | Discovered exit to Materials (range 16) 1844 | -10/Materials | Discovered new exit (range 6) 2016 | -10/Materials | Identified exit to Mines 2230 | -10/Materials | Entered Subcaves 2231 | -10/Subcaves | Approached by a straggling Scientist 2367 | -10/Subcaves | Core integrity fell below 20% 2754 | -10/Subcaves | Destroyed self with Grenade Launcher Last Messages --------------- here" 02624_ 1G-S2N(u) tweaks Twisted Machinery. 02624_ Aluminum Leg destroyed. 02630_ 1G-S2N(u) tweaks Twisted Machinery. 02632_ Lgt. Cannon destroyed. 02633_ 1G-S2N(u) tweaks Twisted Machinery. 8H-NSX(c): "I think it's somewhere south of here" 02642_ G-47 Trooper destroyed. 02646_ Acquired 39 matter. 02649_ Acquired Unknown Power Core. 02650_ Identified Lgt. Nuclear Core. 02659_ Acquired 6 matter. 02664_ System corrupted: FCS attempts to trigger Autogun. 02664_ System corrupted: Autogun misfires. 02693_ The unstable cave ceiling collapses. 02727_ Acquired 10 matter. 02754_ Autogun destroyed. 02754_ Destroyed Autogun. Map ----- +----------------------------------------------------+ | ?????????????????????????????######### | | ?????????????????????? ?#### # # ## | | ?????????????????????? ## #? | | ?????????????????????? # #? | | ??????????????????????? #### #? | | ????????????????????? ? #### #? | | ?????????????????????? # ## # #? | | ??????????????????????? ## #? | | ???????????????????????? ?# = ## | | ???????????????????????? ## ## *%### # | | ????????????????######## ????# #### | | ????????????????# ## #?##### ####% # | | ????????????????# %## #?# # # | | ????????????????# ### ## ### # | | ????????????????## ## #####?# # ## | | ?????????????????## #?????#########? | | ??????????????????## ##?????????????? | | ???????????????????## #?????????????? | | ????????????????????# #?????????????? | | ????????????????????# % ###????????????? | | ????????????????????## #????????????? | | ?????????????????###?## " ##????????????? | | ?????????????????# ##?##" #?????????????? | | ?????????????????# ### ##?????????????? | | ????????????????## # #"" #?????????????? | | ????????????????# @ ### ##?????????????? | | ????????????????## # ##????????????? | | ?????????????????### #" #????????????? | | ???????????????????### " " ##????????????? | | ?????????????????????# " ""##?????????????? | | ?????????????????????#"" ""##??????????????? | | ?????????????????? " """"""##???????????????? | | ?????????????????? " ##""##????????????????? | | ?????????????????? ""#?####?????????????????? | | ????????????????? ##???????????????????????? | | ????????????????????????????????????????????? | | ????????????????????????????????????????????? | | ????????????????????????????????????????????? | | ????????????????????????????????????????????? | | ????????????????????????????????????????????? | | ????????????????????????????????????????????? | | ????????????????????????????????????????????? | | ????????????????????????????????????????????? | | ????????????????????????????????????????????? | | ????????????????????????????????????????????? | | ????????????????????????????????????????????? | | ????????????????????????????????????????????? | | ????????????????????????????????????????????? | | ????????????????????????????????????????????? | | ????????????????????????????????????????????? | +----------------------------------------------------+ Best States ------------- Heat Dissipation 25 Energy Generation 14 Energy Capacity 250 Matter Stores 403 Matter Capacity 500 Sight Range 18 Terrain Scan Range 14 Terrain Scan Density 10 Evasion (%) 55 Item Schematics ----------------- None Robot Schematics ------------------ None Fabricated ------------ Nothing Repaired ---------- Signal Interpreter | 15% | -10/Materials Lgt. Cannon | 45% | -10/Materials Studied --------- None Alien Tech Used ----------------- None Achievements -------------- Spot Them First Challenges ------------ None Game ------ Seed HugeDamperDiverter Manual? 0 Play Time 00:39:48 Cumulative 12.0 hours Start 2025.11.16 @ 18:04:32 End 2025.11.16 @ 18:42:26 Sessions 1 Manual Loads 0 Difficulty Rogue Special Mode None Game No. 11 Rogue 11 Adventurer 0 Explorer 0 Win Type - Total 0 Types 0/0/0/0/0/0/0/0/0/0 Lore% 9 Gallery% 11 Achievement% 11 Wizard Run 0 Options --------- Layout 1 ASCII 0 Keyboard 0 Movement Mouse Keybinds 0 Fullscreen 2 Font 48/Smallcaps Map View 50x35 Zoom Use 0% Tactical HUD 1 Map Filters NONE Filters NONE Steam 1 RUN: 9b1c1eeb-bb75-4bef-8f3a-ef8c532c5687